fUSD/lending_fUSD_20240523
["ID","MTS","AMOUNT","RATE_DAILY","PERIOD"]
[327817051,1716501063723,-22031.35,0.0002957,2]
[327817052,1716501063733,-159.08274939,0.00029579,2]
[327817053,1716501063742,-2752.91,0.00029584,2]
[327817054,1716501063752,-326.73,0.00029589,2]
[327817055,1716501063762,-150.0,0.000296,6]
[327817056,1716501063772,-1139.96186438,0.00029608,2]
[327817057,1716501063782,-2538.53,0.00029646,2]
[327817058,1716501063792,-152.0,0.00029653,3]
[327817059,1716501063802,-5000.0,0.00029676,2]
[327817060,1716501063812,-8497.28601636,0.00029677,2]
[327817061,1716501063821,-1196.13,0.00029682,2]
[327817062,1716501063832,-157.59898109,0.00029688,2]
[327817063,1716501063841,-309.58,0.000297,2]
[327817064,1716501063851,-157.59898109,0.00029708,2]
[327817065,1716501063861,-157.59898109,0.00029718,2]
[327817066,1716501063870,-1008.28,0.0002973,2]
[327817067,1716501063881,-1658.579101,0.0002978,10]
[327817068,1716501063892,-10755.48512817,0.00029784,30]
[327817069,1716501063902,-150.44191761,0.00029793,2]
[327817070,1716501063912,-1688.75,0.00029794,2]
[327817071,1716501063923,-1085.68,0.000298,8]
[327817072,1716501063932,-2000.0,0.000298,2]
[327817073,1716501063942,-1899.06536927,0.000298,2]
[327817074,1716501063952,-1000.0,0.000298,10]
[327817075,1716501063963,-155.07639621,0.00029802,2]
[327817076,1716501063972,-1000.0,0.0002982,10]
[327817077,1716501063982,-1000.0,0.0002984,10]
[327817078,1716501063991,-1000.0,0.0002986,10]
[327817079,1716501064000,-169660.82967409,0.0002988,30]
[327817080,1716501064024,-1787.17128329,0.0002988,30]
[327817081,1716501064072,-272.96,0.00022739,2]
[327817082,1716501064081,-749.98,0.00024109,2]
[327817083,1716501064090,-749.98,0.00024383,2]
[327817084,1716501064099,-749.98,0.00024657,2]
[327817085,1716501064109,-1584.52,0.00026849,2]
[327817086,1716501064119,-1584.52,0.00027123,2]
[327817087,1716501064132,-226.38,0.00027397,10]
[327817088,1716501064142,-86168.47152903,0.0002988,30]
[327817089,1716501064151,-151.0,0.0002988,7]
[327817090,1716501064160,-151.0,0.0002988,7]
[327817091,1716501064171,-151.0,0.0002988,7]
[327817092,1716501064181,-151.0,0.0002988,7]
[327817093,1716501064190,-151.0,0.0002988,7]
[327817094,1716501064200,-151.0,0.0002988,7]
[327817095,1716501064209,-151.0,0.0002988,7]
[327817096,1716501064219,-305.210724,0.0002988,7]
[327817097,1716501064228,-151.0,0.0002988,7]
[327817098,1716501064238,-151.0,0.0002988,7]
[327817099,1716501064247,-151.0,0.0002988,7]
[327817100,1716501064256,-151.0,0.0002988,7]
[327817101,1716501064266,-246.59202,0.0002988,7]
[327817102,1716501064275,-153.47454,0.0002988,7]
[327817103,1716501064284,-1000.0,0.0002988,10]
[327817104,1716501064294,-5000.0,0.00029884,2]
[327817105,1716501064303,-151.0,0.00029884,7]
[327817106,1716501064313,-164.316512,0.00029884,7]
[327817107,1716501064322,-151.0,0.00029884,7]
[327817108,1716501064331,-219.962182,0.00029884,7]
[327817109,1716501064491,-222.731862,0.00029884,7]
[327817110,1716501064501,-222.731862,0.00029884,7]
[327817111,1716501064510,-150.02004426,0.0002989,2]
[327817112,1716501064520,-152.479682,0.00029899,7]
[327817113,1716501064529,-151.0,0.00029899,7]
[327817114,1716501064539,-152.590505,0.00029899,7]
[327817115,1716501064548,-151.0,0.00029899,7]
[327817116,1716501064558,-231.416794,0.00029899,7]
[327817117,1716501064567,-234.263042,0.00029899,7]
[327817118,1716501064576,-187.660815,0.00029899,7]
[327817119,1716501064585,-151.0,0.00029899,7]
[327817120,1716501064595,-151.0,0.00029899,7]
[327817121,1716501064605,-168.388919,0.00029899,7]
[327817122,1716501064614,-151.0,0.00029899,7]
[327817123,1716501064624,-151.0,0.00029899,7]
[327817124,1716501064635,-901.654144,0.00029899,7]
[327817125,1716501064645,-151.0,0.00029899,7]
[327817126,1716501064654,-901.654144,0.00029899,7]
[327817127,1716501064663,-151.0,0.00029899,7]
[327817128,1716501064673,-151.0,0.00029899,7]
[327817129,1716501064683,-151.0,0.00029899,7]
[327817130,1716501064692,-154.883462,0.00029899,7]
[327817131,1716501064702,-151.0,0.00029899,7]
[327817132,1716501064711,-151.0,0.00029899,7]
[327817133,1716501064720,-152.935277,0.00029899,7]
[327817134,1716501064730,-151.0,0.00029899,7]
[327817135,1716501064740,-151.0,0.00029899,7]
[327817136,1716501064751,-151.0,0.00029899,7]
[327817137,1716501064760,-151.0,0.00029899,7]
[327817138,1716501064770,-151.0,0.00029899,7]
[327817139,1716501064780,-151.0,0.00029899,7]
[327817140,1716501064789,-151.0,0.00029899,7]
[327817141,1716501064798,-46462.53775517,0.000299,2]
[327817142,1716501064808,-8207.04180454,0.000299,5]
[327817143,1716501064818,-320.51440186,0.000299,10]
[327817144,1716501064830,-679.48559814,0.000299,10]
[327817145,1716501064839,-5000.0,0.00029912,2]
[327817146,1716501064848,-608.01,0.00029919,2]
[327817147,1716501064858,-1000.0,0.0002992,10]
[327817148,1716501064868,-5000.0,0.00029931,2]
[327817149,1716501064877,-1000.0,0.0002994,10]
[327817150,1716501064886,-4672.64467486,0.00029942,2]
[327817151,1716501064899,-2505.21820757,0.00029942,2]
[327817152,1716501065027,-28289.76981523,0.00021916,2]
[327817153,1716501065037,-500.0,0.00021917,2]
[327817154,1716501065046,-222.434868,0.00023562,2]
[327817155,1716501065056,-222.434868,0.00024384,2]
[327817156,1716501065066,-152.872,0.00024512,2]
[327817157,1716501065075,-150.315,0.00024512,2]
[327817158,1716501065085,-749.98,0.00024931,2]
[327817159,1716501065095,-151.0,0.00025,7]
[327817160,1716501065105,-749.98,0.00025205,2]
[327817161,1716501065114,-749.98,0.00025479,2]
[327817162,1716501065127,-749.98,0.00025753,2]
[327817163,1716501065140,-749.98,0.00026027,2]
[327817164,1716501065149,-749.98,0.00026301,2]
[327817165,1716501065160,-1584.52,0.00027397,2]
[327817166,1716501065170,-150.0,0.00027512,2]
[327817167,1716501065180,-1584.52,0.00027671,2]
[327817168,1716501065190,-1584.52,0.00027945,2]
[327817169,1716501065200,-1584.55,0.00028219,2]
[327817170,1716501065213,-2822.13711757,0.00029942,2]
[327817171,1716501065223,-5000.0,0.00029957,2]
[327817172,1716501065233,-1000.0,0.0002996,10]
[327817173,1716501065243,-5000.0,0.00029962,2]
[327817174,1716501065252,-4111.22,0.00029966,2]
[327817175,1716501065262,-152.96549235,0.00029967,2]
[327817176,1716501065271,-1000.0,0.0002998,10]
[327817177,1716501065280,-28449.13563322,0.00029997,2]
[327817178,1716501065290,-2343.08678723,0.0003,4]
[327817179,1716501065300,-23826.89758914,0.0003,4]
[327817180,1716501065309,-5689.27995954,0.0003,2]
[327817181,1716501065318,-19403.63375217,0.0003,4]
[327817182,1716501065327,-1000.0,0.0003,2]
[327817183,1716501065337,-160.0,0.0003,2]
[327817184,1716501065346,-2923.76918522,0.0003,2]
[327817185,1716501065356,-169.92195531,0.0003,2]
[327817186,1716501065365,-348.35023391,0.0003,2]
[327817187,1716501065374,-1707.80571288,0.0003,2]
[327817188,1716501065384,-71393.31217137,0.0003,2]
[327817189,1716501065516,-806.1749652,0.0003,2]
[327817190,1716501065567,-180.05009895,0.000249,2]
[327817191,1716501065577,-749.98,0.00026575,2]
[327817192,1716501065586,-749.98,0.00026849,2]
[327817193,1716501065595,-302.08935375,0.00028124,2]
[327817194,1716501072831,154.47,0.00013973,2]
[327817195,1716501077556,751.01567283,0.00016726,2]
[327817198,1716501203117,1000.0,0.00030532,120]
[327817201,1716501547127,151.83,0.00013973,2]
[327817212,1716502218738,6893.1011376,0.00013973,2]
[327817221,1716502232160,-150.0,0.00017258,2]
[327817222,1716502232170,-150.0,0.00017258,2]
[327817223,1716502232179,-733.7,0.00017259,2]
[327817224,1716502232191,-903.55095595,0.00017259,2]
[327817225,1716502232202,-518.40021227,0.00017259,2]
[327817226,1716502232213,-993.05627562,0.00017259,2]
[327817227,1716502232224,-1275.75232492,0.00017259,2]
[327817228,1716502232236,-2236.40774336,0.00017259,2]
[327817229,1716502232247,-61283.02990408,0.00017259,2]
[327817230,1716502232256,-163.61730037,0.00018225,2]
[327817231,1716502232265,-993.82,0.00018325,2]
[327817232,1716502232274,-618.92358897,0.00018584,2]
[327817233,1716502232283,-1227.04758271,0.00018585,2]
[327817234,1716502232292,-2955.6735,0.00018585,2]
[327817235,1716502232302,-32648.25224789,0.00018586,2]
[327817236,1716502232313,-408.75323981,0.00018586,2]
[327817237,1716502232328,-4418.68084375,0.00018586,2]
[327817238,1716502232337,-1039.20687623,0.00018586,2]
[327817239,1716502232346,-153.68555233,0.00018586,2]
[327817240,1716502232357,-617.39409782,0.00018586,2]
[327817241,1716502232369,-272.56096399,0.00018586,2]
[327817242,1716502232378,-157.44463601,0.00018984,2]
[327817243,1716502232389,-52.55536399,0.00018984,2]
[327817244,1716502232399,-286.75,0.00019861,2]
[327817245,1716502232407,-588.85647772,0.00019968,2]
[327817246,1716502232418,-372.74352228,0.00019968,2]
[327817247,1716502232428,-889.01,0.00019993,3]
[327817248,1716502232438,-245.32566372,0.0002,2]
[327817249,1716502232449,-199.99938431,0.0002,2]
[327817250,1716502232459,-1258.18564355,0.0002,2]
[327817251,1716502232471,-515.08271372,0.0002,2]
[327817252,1716502232485,-23900.0,0.00020003,2]
[327817253,1716502232494,-250.0,0.00020082,2]
[327817254,1716502232503,-3277.07,0.00020109,2]
[327817255,1716502232512,-250.0,0.0002014,2]
[327817256,1716502232522,-185.36,0.00020194,2]
[327817257,1716502232531,-666.83,0.00020278,2]
[327817258,1716502232541,-157.23,0.00020305,2]
[327817259,1716502232550,-993.82,0.00020588,2]
[327817260,1716502232560,-192.0,0.00020685,2]
[327817261,1716502232570,-151.83,0.00020807,2]
[327817262,1716502232582,-154.03,0.00020915,2]
[327817263,1716502232592,-154.03,0.00020929,2]
[327817264,1716502232601,-154.03,0.00020942,2]
[327817265,1716502232610,-154.03,0.00020955,2]
[327817266,1716502232619,-154.03,0.00020968,2]
[327817267,1716502232628,-154.03,0.00020981,2]
[327817268,1716502232637,-154.03,0.00020994,2]
[327817269,1716502232647,-1050.0,0.00021,2]
[327817270,1716502232657,-154.03,0.00021007,2]
[327817271,1716502232666,-154.03,0.0002102,2]
[327817272,1716502232675,-600.0,0.00021506,2]
[327817273,1716502232684,-1000.0,0.00021817,2]
[327817274,1716502232693,-2867.7659,0.00021817,2]
[327817275,1716502232702,-2500.0,0.00021817,2]
[327817276,1716502232712,-6772.86623355,0.000219,2]
[327817277,1716502232721,-497.65143446,0.00021917,2]
[327817278,1716502232731,-627.64865268,0.00021917,2]
[327817279,1716502232741,-500.0,0.00021917,2]
[327817280,1716502232751,-500.0,0.00021917,2]
[327817281,1716502232761,-500.0,0.00021917,2]
[327817282,1716502232770,-500.0,0.00021917,2]
[327817283,1716502232779,-646.9,0.00021917,2]
[327817284,1716502232788,-319.91737512,0.00021917,2]
[327817285,1716502232798,-500.0,0.00021917,2]
[327817286,1716502232807,-500.0,0.00021917,2]
[327817287,1716502232817,-500.0,0.00021917,2]
[327817288,1716502232828,-500.0,0.00021917,2]
[327817289,1716502232838,-500.0,0.00021917,2]
[327817290,1716502232847,-500.0,0.00021917,2]
[327817291,1716502232856,-500.0,0.00021917,2]
[327817292,1716502232865,-500.0,0.00021917,2]
[327817293,1716502232874,-500.0,0.00021917,2]
[327817294,1716502232883,-500.0,0.00021917,2]
[327817295,1716502232892,-500.0,0.00021917,2]
[327817296,1716502232902,-500.0,0.00021917,2]
[327817297,1716502232912,-500.0,0.00021917,2]
[327817298,1716502232922,-532.7052962,0.00021917,2]
[327817299,1716502232931,-500.0,0.00021917,2]
[327817300,1716502232940,-500.0,0.00021917,2]
[327817301,1716502232949,-500.0,0.00021917,2]
[327817302,1716502232959,-500.0,0.00021917,2]
[327817303,1716502232968,-500.0,0.00021917,2]
[327817304,1716502232977,-500.0,0.00021917,2]
[327817305,1716502232986,-500.0,0.00021917,2]
[327817306,1716502232996,-500.0,0.00021917,2]
[327817307,1716502233005,-500.0,0.00021917,2]
[327817308,1716502233015,-500.0,0.00021917,2]
[327817309,1716502233024,-500.0,0.00021917,2]
[327817310,1716502233035,-500.0,0.00021917,2]
[327817311,1716502233045,-500.0,0.00021917,2]
[327817312,1716502233054,-500.0,0.00021917,2]
[327817313,1716502233064,-500.0,0.00021917,2]
[327817314,1716502233076,-500.0,0.00021917,2]
[327817315,1716502233085,-500.0,0.00021917,2]
[327817316,1716502233094,-500.0,0.00021917,2]
[327817317,1716502233102,-500.0,0.00021917,2]
[327817318,1716502233111,-500.0,0.00021917,2]
[327817319,1716502233120,-500.0,0.00021917,2]
[327817320,1716502233129,-500.0,0.00021917,2]
[327817321,1716502233138,-500.0,0.00021917,2]
[327817322,1716502233147,-500.0,0.00021917,2]
[327817323,1716502233158,-500.0,0.00021917,2]
[327817324,1716502233167,-500.0,0.00021917,2]
[327817325,1716502233177,-500.0,0.00021917,2]
[327817326,1716502233186,-515.95770315,0.00021917,2]
[327817327,1716502233196,-500.0,0.00021917,2]
[327817328,1716502233205,-500.0,0.00021917,2]
[327817329,1716502233214,-500.0,0.00021917,2]
[327817330,1716502233224,-500.0,0.00021917,2]
[327817331,1716502233234,-500.0,0.00021917,2]
[327817332,1716502233243,-551.43,0.00021917,2]
[327817333,1716502233252,-500.0,0.00021917,2]
[327817334,1716502233261,-168.03,0.00021917,2]
[327817335,1716502233271,-500.0,0.00021917,2]
[327817336,1716502233280,-500.0,0.00021917,2]
[327817337,1716502233289,-500.0,0.00021917,2]
[327817338,1716502233298,-500.0,0.00021917,2]
[327817339,1716502233307,-500.0,0.00021917,2]
[327817340,1716502233316,-500.0,0.00021917,2]
[327817341,1716502233328,-500.0,0.00021917,2]
[327817342,1716502233337,-500.0,0.00021917,2]
[327817343,1716502233346,-500.0,0.00021917,2]
[327817344,1716502233355,-500.0,0.00021917,2]
[327817345,1716502233364,-500.0,0.00021917,2]
[327817346,1716502233373,-584.29,0.00021917,2]
[327817347,1716502233384,-537.11,0.00021917,2]
[327817348,1716502233393,-500.0,0.00021917,2]
[327817349,1716502233402,-500.0,0.00021917,2]
[327817350,1716502233411,-500.0,0.00021917,2]
[327817351,1716502233421,-500.0,0.00021917,2]
[327817352,1716502233430,-500.0,0.00021917,2]
[327817353,1716502233439,-500.0,0.00021917,2]
[327817354,1716502233449,-2000.0,0.00021918,2]
[327817355,1716502233458,-250.0,0.00021918,2]
[327817356,1716502233473,-329.68,0.00021918,2]
[327817357,1716502233482,-395.0,0.00021998,2]
[327817358,1716502233491,-500.0,0.00021998,2]
[327817359,1716502233501,-500.0,0.00021998,2]
[327817360,1716502233512,-571.8612893,0.00021998,2]
[327817361,1716502233522,-296.74,0.00021998,2]
[327817362,1716502233531,-500.0,0.00021998,2]
[327817363,1716502233540,-500.0,0.00021998,2]
[327817364,1716502233549,-833.97,0.00021998,2]
[327817365,1716502233559,-500.0,0.00021998,2]
[327817366,1716502233568,-500.0,0.00021998,2]
[327817367,1716502233580,-500.0,0.00021998,2]
[327817368,1716502233589,-500.0,0.00021998,2]
[327817369,1716502233598,-500.0,0.00021998,2]
[327817370,1716502233607,-500.0,0.00021998,2]
[327817371,1716502233616,-500.0,0.00021998,2]
[327817372,1716502233627,-207.33,0.00021998,2]
[327817373,1716502233637,-500.0,0.00021998,2]
[327817374,1716502233647,-500.0,0.00021998,2]
[327817375,1716502233657,-500.0,0.00021998,2]
[327817376,1716502233666,-500.0,0.00021998,2]
[327817377,1716502233676,-305.56,0.00021998,2]
[327817378,1716502233685,-500.0,0.00021998,2]
[327817379,1716502233694,-500.0,0.00021998,2]
[327817380,1716502233703,-500.0,0.00021998,2]
[327817381,1716502233713,-500.0,0.00021998,2]
[327817382,1716502233722,-500.0,0.00021998,2]
[327817383,1716502233731,-500.0,0.00021998,2]
[327817384,1716502233741,-500.0,0.00021998,2]
[327817385,1716502233750,-500.0,0.00021999,2]
[327817386,1716502233759,-500.0,0.00021999,2]
[327817387,1716502233769,-500.0,0.00021999,2]
[327817388,1716502233778,-500.0,0.00021999,2]
[327817389,1716502233788,-500.0,0.00021999,2]
[327817390,1716502233797,-500.0,0.00021999,2]
[327817391,1716502233807,-500.0,0.00021999,2]
[327817392,1716502233816,-356.56431327,0.00021999,2]
[327817393,1716502233827,-243.13,0.00021999,2]
[327817394,1716502233837,-500.0,0.00021999,2]
[327817395,1716502233846,-500.0,0.00021999,2]
[327817396,1716502233855,-500.0,0.00021999,2]
[327817397,1716502233866,-500.0,0.00021999,2]
[327817398,1716502233875,-500.0,0.00021999,2]
[327817399,1716502233885,-150.0,0.00021999,2]
[327817400,1716502233895,-500.0,0.00021999,2]
[327817401,1716502233904,-500.0,0.00021999,2]
[327817402,1716502233913,-500.0,0.00021999,2]
[327817403,1716502233923,-168.30509009,0.00021999,2]
[327817404,1716502233933,-213.36,0.00021999,2]
[327817405,1716502233942,-500.0,0.00021999,2]
[327817406,1716502233951,-500.0,0.00021999,2]
[327817407,1716502233961,-500.0,0.00021999,2]
[327817408,1716502233970,-500.0,0.00021999,2]
[327817409,1716502233979,-500.0,0.00021999,2]
[327817410,1716502233989,-511.93216236,0.00021999,2]
[327817411,1716502233998,-500.0,0.00021999,2]
[327817412,1716502234007,-500.0,0.00021999,2]
[327817413,1716502234017,-500.0,0.00021999,2]
[327817414,1716502234026,-500.0,0.00021999,2]
[327817415,1716502234035,-358.71613735,0.00021999,2]
[327817416,1716502234044,-512.59692074,0.00021999,2]
[327817417,1716502234054,-500.0,0.00021999,2]
[327817418,1716502234064,-613.97338709,0.00021999,2]
[327817419,1716502234075,-500.0,0.00021999,2]
[327817420,1716502234084,-272.82808765,0.00021999,2]
[327817421,1716502234093,-257.54,0.00021999,2]
[327817422,1716502234102,-500.0,0.00021999,2]
[327817423,1716502234111,-500.0,0.00021999,2]
[327817424,1716502234120,-500.0,0.00021999,2]
[327817425,1716502234129,-500.0,0.00021999,2]
[327817426,1716502234139,-318.12871841,0.00021999,2]
[327817427,1716502234148,-431.10425605,0.00021999,2]
[327817428,1716502234157,-500.0,0.00021999,2]
[327817429,1716502234166,-500.0,0.00021999,2]
[327817430,1716502234175,-347.9359294,0.00021999,2]
[327817431,1716502234184,-599.61,0.00021999,2]
[327817432,1716502234193,-500.0,0.00021999,2]
[327817433,1716502234202,-500.0,0.00021999,2]
[327817434,1716502234212,-194.52740797,0.00021999,2]
[327817435,1716502234221,-400.45870652,0.00021999,2]
[327817436,1716502234230,-500.0,0.00021999,2]
[327817437,1716502234239,-500.0,0.00021999,2]
[327817438,1716502234249,-500.0,0.00021999,2]
[327817439,1716502234258,-500.0,0.00021999,2]
[327817440,1716502234267,-500.0,0.00021999,2]
[327817441,1716502234277,-500.0,0.00021999,2]
[327817442,1716502234286,-500.0,0.00021999,2]
[327817443,1716502234295,-500.0,0.00021999,2]
[327817444,1716502234304,-500.0,0.00021999,2]
[327817445,1716502234313,-500.0,0.00021999,2]
[327817446,1716502234324,-500.0,0.00021999,2]
[327817447,1716502234333,-303.857325,0.00021999,2]
[327817448,1716502234343,-500.0,0.00021999,2]
[327817449,1716502234352,-500.0,0.00021999,2]
[327817450,1716502234361,-500.0,0.00021999,2]
[327817451,1716502234370,-500.0,0.00021999,2]
[327817452,1716502234379,-500.0,0.00021999,2]
[327817453,1716502234388,-500.0,0.00021999,2]
[327817454,1716502234397,-500.0,0.00021999,2]
[327817455,1716502234407,-500.0,0.00021999,2]
[327817456,1716502234415,-500.0,0.00021999,2]
[327817457,1716502234425,-556.32,0.00021999,2]
[327817458,1716502234434,-500.0,0.00021999,2]
[327817459,1716502234443,-500.0,0.00021999,2]
[327817460,1716502234452,-500.0,0.00021999,2]
[327817461,1716502234462,-500.0,0.00021999,2]
[327817462,1716502234471,-500.0,0.00021999,2]
[327817463,1716502234484,-500.0,0.00021999,2]
[327817464,1716502234493,-500.0,0.00021999,2]
[327817465,1716502234502,-500.0,0.00021999,2]
[327817466,1716502234512,-500.0,0.00021999,2]
[327817467,1716502234521,-325.16,0.00021999,2]
[327817468,1716502234531,-500.0,0.00021999,2]
[327817469,1716502234540,-593.43,0.00021999,2]
[327817470,1716502234551,-500.0,0.00021999,2]
[327817471,1716502234563,-500.0,0.00021999,2]
[327817472,1716502234574,-500.0,0.00021999,2]
[327817473,1716502234584,-217.98,0.00021999,2]
[327817474,1716502234593,-500.0,0.00021999,2]
[327817475,1716502234603,-500.0,0.00021999,2]
[327817476,1716502234612,-500.0,0.00021999,2]
[327817477,1716502234621,-500.0,0.00021999,2]
[327817478,1716502234630,-500.0,0.00021999,2]
[327817479,1716502234639,-500.0,0.00021999,2]
[327817480,1716502234648,-500.0,0.00021999,2]
[327817481,1716502234658,-500.0,0.00021999,2]
[327817482,1716502234667,-500.0,0.00021999,2]
[327817483,1716502234676,-500.0,0.00021999,2]
[327817484,1716502234685,-500.0,0.00021999,2]
[327817485,1716502234694,-500.0,0.00021999,2]
[327817486,1716502234703,-519.1,0.00021999,2]
[327817487,1716502234712,-500.0,0.00021999,2]
[327817488,1716502234722,-163.21,0.00021999,2]
[327817489,1716502234731,-500.0,0.00021999,2]
[327817490,1716502234740,-500.0,0.00021999,2]
[327817491,1716502234750,-9156.94527158,0.00022,2]
[327817492,1716502234759,-600.0,0.00022054,2]
[327817493,1716502234768,-10000.0,0.00022091,2]
[327817494,1716502234777,-3963.6683,0.00022091,2]
[327817495,1716502234786,-866.31104539,0.00022091,2]
[327817496,1716502234796,-500.0,0.0002219,2]
[327817497,1716502234806,-245.6965138,0.0002219,2]
[327817498,1716502234816,-626.38,0.00022191,2]
[327817499,1716502234827,-500.0,0.00022191,2]
[327817500,1716502234836,-500.0,0.00022191,2]
[327817501,1716502234846,-500.0,0.00022191,2]
[327817502,1716502234856,-500.0,0.00022191,2]
[327817503,1716502234865,-500.0,0.00022191,2]
[327817504,1716502234875,-500.0,0.00022191,2]
[327817505,1716502234884,-500.0,0.00022191,2]
[327817506,1716502234894,-236.96,0.00022191,2]
[327817507,1716502234904,-513.34,0.00022191,2]
[327817508,1716502234913,-293.19,0.00022191,2]
[327817509,1716502234923,-500.0,0.00022272,2]
[327817510,1716502234933,-833.97,0.00022272,2]
[327817511,1716502234943,-166.42,0.00022272,2]
[327817512,1716502234952,-500.0,0.00022272,2]
[327817513,1716502234961,-500.0,0.00022272,2]
[327817514,1716502234970,-500.0,0.00022272,2]
[327817515,1716502234979,-500.0,0.00022272,2]
[327817516,1716502234989,-301.02310689,0.00022272,2]
[327817517,1716502234998,-500.0,0.00022273,2]
[327817518,1716502235007,-495.42315711,0.00022273,2]
[327817519,1716502235016,-216.11249876,0.00022273,2]
[327817520,1716502235025,-239.34312076,0.00022273,2]
[327817521,1716502235034,-273.03655397,0.00022273,2]
[327817522,1716502235043,-500.0,0.00022273,2]
[327817523,1716502235053,-595.05125184,0.00022273,2]
[327817524,1716502235062,-500.0,0.00022273,2]
[327817525,1716502235074,-171.93,0.00022273,2]
[327817526,1716502235084,-500.0,0.00022273,2]
[327817527,1716502235093,-500.0,0.00022273,2]
[327817528,1716502235103,-493.42340263,0.00022273,2]
[327817529,1716502235112,-500.0,0.00022273,2]
[327817530,1716502235122,-500.0,0.00022273,2]
[327817531,1716502235131,-500.0,0.00022273,2]
[327817532,1716502235140,-593.01,0.00022273,2]
[327817533,1716502235149,-500.0,0.00022273,2]
[327817534,1716502235159,-500.0,0.00022273,2]
[327817535,1716502235168,-500.0,0.00022273,2]
[327817536,1716502235177,-500.0,0.00022273,2]
[327817537,1716502235186,-500.0,0.00022273,2]
[327817538,1716502235196,-500.0,0.00022273,2]
[327817539,1716502235206,-500.0,0.00022273,2]
[327817540,1716502235215,-500.0,0.00022273,2]
[327817541,1716502235224,-500.0,0.00022273,2]
[327817542,1716502235234,-531.68732656,0.00022273,2]
[327817543,1716502235243,-500.0,0.00022273,2]
[327817544,1716502235252,-500.0,0.00022273,2]
[327817545,1716502235261,-519.1,0.00022273,2]
[327817546,1716502235270,-500.0,0.00022273,2]
[327817547,1716502235280,-961.6,0.00022464,2]
[327817548,1716502235289,-500.0,0.00022464,2]
[327817549,1716502235298,-500.0,0.00022465,2]
[327817550,1716502235307,-500.0,0.00022465,2]
[327817551,1716502235316,-500.0,0.00022465,2]
[327817552,1716502235327,-155.0,0.000225,2]
[327817553,1716502235504,-500.0,0.00022546,2]
[327817554,1716502235515,-833.97,0.00022546,2]
[327817555,1716502235525,-272.88,0.00022546,2]
[327817556,1716502235534,-500.0,0.00022546,2]
[327817557,1716502235545,-420.1,0.00022546,2]
[327817558,1716502235555,-500.0,0.00022546,2]
[327817559,1716502235565,-500.0,0.00022547,2]
[327817560,1716502235576,-500.0,0.00022547,2]
[327817561,1716502235585,-186.88,0.00022547,2]
[327817562,1716502235594,-294.74,0.00022547,2]
[327817563,1716502235603,-500.0,0.00022547,2]
[327817564,1716502235612,-500.0,0.00022547,2]
[327817565,1716502235622,-500.0,0.00022547,2]
[327817566,1716502235631,-279.86,0.00022547,2]
[327817567,1716502235640,-519.1,0.00022547,2]
[327817568,1716502235649,-600.0,0.00022602,2]
[327817569,1716502235659,-500.0,0.00022738,2]
[327817570,1716502235668,-500.0,0.00022739,2]
[327817571,1716502235677,-217.31998622,0.00022739,2]
[327817572,1716502235687,-500.0,0.00022739,2]